[Event "Late-Titled-Tuesday-Blitz-April-02-2024"]
[Site "Chess.com"]
[Date "2024.04.02"]
[Round "7"]
[White "youngdinousaur"]
[Black "shirovin"]
[Result "1-0"]
[WhiteElo "2233"]
[BlackElo "2057"]
[TimeControl "180+1"]
[EndTime "15:15:23 PDT"]
[Termination "youngdinousaur won on time"]

1. d4 {[%clk 0:03:00.9]} 1... Nf6 {[%clk 0:02:59.8]} 2. Nf3 {[%clk 0:03:00.2]}
2... e6 {[%clk 0:03:00]} 3. Bf4 {[%clk 0:02:57.4]} 3... d5 {[%clk 0:02:55.4]} 4.
e3 {[%clk 0:02:58.3]} 4... c5 {[%clk 0:02:54.7]} 5. c3 {[%clk 0:02:58]} 5... Nc6
{[%clk 0:02:54.1]} 6. Bd3 {[%clk 0:02:50.6]} 6... Qb6 {[%clk 0:02:51.2]} 7. Qb3
{[%clk 0:02:37.6]} 7... c4 {[%clk 0:02:49]} 8. Qxb6 {[%clk 0:02:37.5]} 8... axb6
{[%clk 0:02:49.6]} 9. Bc2 {[%clk 0:02:37.8]} 9... Be7 {[%clk 0:02:38.8]} 10.
Nbd2 {[%clk 0:02:34.6]} 10... O-O {[%clk 0:02:37.3]} 11. a3 {[%clk 0:02:32.4]}
11... Bd7 {[%clk 0:02:35.9]} 12. O-O {[%clk 0:02:31]} 12... Rfd8 {[%clk
0:02:16.1]} 13. Rfe1 {[%clk 0:02:17.5]} 13... Rdc8 {[%clk 0:02:13.5]} 14. e4
{[%clk 0:02:17.7]} 14... Be8 {[%clk 0:02:09.7]} 15. h3 {[%clk 0:02:12]} 15...
Bf8 {[%clk 0:02:04.4]} 16. Re2 {[%clk 0:02:10.4]} 16... b5 {[%clk 0:02:00.1]}
17. Rae1 {[%clk 0:02:10.8]} 17... h6 {[%clk 0:01:34.6]} 18. exd5 {[%clk
0:02:08.8]} 18... Nxd5 {[%clk 0:01:31.6]} 19. Bh2 {[%clk 0:02:08.4]} 19... Nb6
{[%clk 0:01:28.6]} 20. Ne5 {[%clk 0:02:06]} 20... Nxe5 {[%clk 0:01:26.7]} 21.
Bxe5 {[%clk 0:02:02.4]} 21... Na4 {[%clk 0:01:11.6]} 22. Bxa4 {[%clk 0:02:01.1]}
22... bxa4 {[%clk 0:01:10.9]} 23. Bg3 {[%clk 0:01:52.4]} 23... Ra6 {[%clk
0:01:08.8]} 24. d5 {[%clk 0:01:51.6]} 24... Bd7 {[%clk 0:01:00.1]} 25. dxe6
{[%clk 0:01:39.2]} 25... Bxe6 {[%clk 0:00:58]} 26. Nf3 {[%clk 0:01:39.7]} 26...
Rb6 {[%clk 0:00:49.2]} 27. Nd4 {[%clk 0:01:39.3]} 27... Bd5 {[%clk 0:00:42]} 28.
Rd2 {[%clk 0:01:39.1]} 28... Bc5 {[%clk 0:00:28.5]} 29. Re5 {[%clk 0:01:34.4]}
29... Bxd4 {[%clk 0:00:21.2]} 30. Rxd5 {[%clk 0:01:34.4]} 30... Bc5 {[%clk
0:00:20.5]} 31. Kf1 {[%clk 0:01:28.3]} 31... Bf8 {[%clk 0:00:19.5]} 32. Rd8
{[%clk 0:01:19.8]} 32... Rbc6 {[%clk 0:00:16.8]} 33. f3 {[%clk 0:01:16.5]} 33...
f6 {[%clk 0:00:14.8]} 34. R2d7 {[%clk 0:01:14.2]} 34... Rxd8 {[%clk 0:00:12.7]}
35. Rxd8 {[%clk 0:01:14.9]} 35... Rb6 {[%clk 0:00:12.7]} 36. Rd2 {[%clk
0:01:13.4]} 36... Kf7 {[%clk 0:00:11.6]} 37. Bf2 {[%clk 0:01:10]} 37... Rb5
{[%clk 0:00:11]} 38. g4 {[%clk 0:01:08.5]} 38... Bc5 {[%clk 0:00:08.7]} 39. Bxc5
{[%clk 0:01:05.7]} 39... Rxc5 {[%clk 0:00:08.8]} 40. Rd7+ {[%clk 0:01:06.4]}
40... Kg6 {[%clk 0:00:08.4]} 41. Rxb7 {[%clk 0:01:07.3]} 41... Rd5 {[%clk
0:00:06.1]} 42. Ke2 {[%clk 0:01:06.6]} 42... Rc5 {[%clk 0:00:04]} 43. Rb4 {[%clk
0:01:06]} 43... h5 {[%clk 0:00:01.5]} 44. Rxa4 {[%clk 0:01:05.3]} 1-0

[Event "Late-Titled-Tuesday-Blitz-April-02-2024"]
[Site "Chess.com"]
[Date "2024.04.02"]
[Round "7"]
[White "Evgeny81"]
[Black "albi1999"]
[Result "1-0"]
[WhiteElo "2759"]
[BlackElo "2608"]
[TimeControl "180+1"]
[EndTime "15:15:24 PDT"]
[Termination "Evgeny81 won on time"]

1. e4 {[%clk 0:03:00.9]} 1... c5 {[%clk 0:02:58.1]} 2. Nf3 {[%clk 0:03:00.9]}
2... a6 {[%clk 0:02:58.3]} 3. c3 {[%clk 0:03:00.6]} 3... d5 {[%clk 0:02:57.7]}
4. exd5 {[%clk 0:03:01.1]} 4... Nf6 {[%clk 0:02:58.3]} 5. d4 {[%clk 0:03:01.9]}
5... cxd4 {[%clk 0:02:58.1]} 6. Nxd4 {[%clk 0:02:57.5]} 6... Qxd5 {[%clk
0:02:57.8]} 7. c4 {[%clk 0:02:53.3]} 7... Qe4+ {[%clk 0:02:47.8]} 8. Be3 {[%clk
0:02:49]} 8... Ng4 {[%clk 0:02:42.9]} 9. Nc3 {[%clk 0:02:47.5]} 9... Nxe3 {[%clk
0:02:34.6]} 10. Nxe4 {[%clk 0:02:45.1]} 10... Nxd1 {[%clk 0:02:34.4]} 11. Rxd1
{[%clk 0:02:46]} 11... e5 {[%clk 0:02:22]} 12. Nc2 {[%clk 0:02:45.8]} 12... Nc6
{[%clk 0:02:17]} 13. Be2 {[%clk 0:02:39.5]} 13... Be6 {[%clk 0:02:16]} 14. Ng5
{[%clk 0:02:30]} 14... Bf5 {[%clk 0:02:07.8]} 15. Ne3 {[%clk 0:02:28.9]} 15...
Bb4+ {[%clk 0:02:02.2]} 16. Kf1 {[%clk 0:02:29.1]} 16... Bg6 {[%clk 0:01:54.8]}
17. Nd5 {[%clk 0:02:14.9]} 17... O-O {[%clk 0:01:52.5]} 18. h4 {[%clk
0:02:14.7]} 18... h6 {[%clk 0:01:39.3]} 19. h5 {[%clk 0:02:12.1]} 19... Bc2
{[%clk 0:01:37.9]} 20. Rc1 {[%clk 0:02:11.4]} 20... Bf5 {[%clk 0:01:34.1]} 21.
g4 {[%clk 0:02:05.6]} 21... Bd7 {[%clk 0:00:48.5]} 22. Ne4 {[%clk 0:01:58.3]}
22... f5 {[%clk 0:00:46.3]} 23. gxf5 {[%clk 0:01:55.5]} 23... Bxf5 {[%clk
0:00:47.2]} 24. Bd3 {[%clk 0:01:50.6]} 24... Kh8 {[%clk 0:00:24.5]} 25. Rg1
{[%clk 0:01:48.8]} 25... Bh3+ {[%clk 0:00:23]} 26. Ke2 {[%clk 0:01:44.1]} 26...
Nd4+ {[%clk 0:00:22.8]} 27. Kd1 {[%clk 0:01:44.5]} 27... Ba5 {[%clk 0:00:15.2]}
28. Ne7 {[%clk 0:01:32.1]} 28... Rf7 {[%clk 0:00:08.8]} 29. Ng6+ {[%clk
0:01:29.4]} 29... Kg8 {[%clk 0:00:09.3]} 30. Nxe5 {[%clk 0:01:26.8]} 30... Re7
{[%clk 0:00:08.4]} 31. Ng6 {[%clk 0:01:25.4]} 31... Ree8 {[%clk 0:00:08.3]} 32.
Nf4 {[%clk 0:01:18.9]} 32... Bf5 {[%clk 0:00:03.6]} 33. Nf6+ {[%clk 0:01:17.2]}
33... Kf8 {[%clk 0:00:03.4]} 34. Nxe8 {[%clk 0:01:15.3]} 34... Rxe8 {[%clk
0:00:03.1]} 35. Bxf5 {[%clk 0:01:12.6]} 35... Nxf5 {[%clk 0:00:04]} 36. Kc2
{[%clk 0:01:03]} 36... Re4 {[%clk 0:00:02.8]} 37. Ng6+ {[%clk 0:01:00.6]} 37...
Kf7 {[%clk 0:00:03.4]} 38. Kb1 {[%clk 0:01:00.5]} 38... Bb6 {[%clk 0:00:02.7]}
39. Rge1 {[%clk 0:00:54.7]} 39... Rg4 {[%clk 0:00:01.2]} 40. Ne5+ {[%clk
0:00:54.5]} 1-0

[Event "Late-Titled-Tuesday-Blitz-April-02-2024"]
[Site "Chess.com"]
[Date "2024.04.02"]
[Round "7"]
[White "Szachulec75"]
[Black "egnfanclub"]
[Result "0-1"]
[WhiteElo "2054"]
[BlackElo "2370"]
[TimeControl "180+1"]
[EndTime "15:15:26 PDT"]
[Termination "egnfanclub won by resignation"]

1. Nf3 {[%clk 0:03:00.9]} 1... Nf6 {[%clk 0:02:59.5]} 2. g3 {[%clk 0:03:00.4]}
2... b5 {[%clk 0:02:59.3]} 3. Bg2 {[%clk 0:03:01.3]} 3... Bb7 {[%clk 0:02:59.7]}
4. O-O {[%clk 0:03:01.6]} 4... e6 {[%clk 0:03:00.1]} 5. d3 {[%clk 0:03:01.9]}
5... c5 {[%clk 0:03:00.1]} 6. e4 {[%clk 0:03:01.4]} 6... d6 {[%clk 0:02:59.3]}
7. b3 {[%clk 0:02:59.9]} 7... Be7 {[%clk 0:02:59.6]} 8. Bb2 {[%clk 0:03:00.1]}
8... Nc6 {[%clk 0:02:58.5]} 9. a4 {[%clk 0:03:00.6]} 9... a6 {[%clk 0:02:58.2]}
10. Nc3 {[%clk 0:02:57.8]} 10... b4 {[%clk 0:02:58.5]} 11. Ne2 {[%clk
0:02:57.8]} 11... O-O {[%clk 0:02:57.8]} 12. h3 {[%clk 0:02:57.5]} 12... d5
{[%clk 0:02:50.6]} 13. exd5 {[%clk 0:02:54.5]} 13... exd5 {[%clk 0:02:44.8]} 14.
Ne5 {[%clk 0:02:54.3]} 14... Nxe5 {[%clk 0:02:44.2]} 15. Bxe5 {[%clk 0:02:53.1]}
15... Re8 {[%clk 0:02:40.6]} 16. Nf4 {[%clk 0:02:41.7]} 16... Nd7 {[%clk
0:02:13.1]} 17. Bb2 {[%clk 0:02:38.8]} 17... Bf6 {[%clk 0:02:13.4]} 18. Bxf6
{[%clk 0:02:35.4]} 18... Nxf6 {[%clk 0:02:14.3]} 19. d4 {[%clk 0:02:31.6]} 19...
cxd4 {[%clk 0:01:58.7]} 20. Qxd4 {[%clk 0:02:30.4]} 20... Qc7 {[%clk 0:01:56.9]}
21. Qxb4 {[%clk 0:02:28.8]} 21... a5 {[%clk 0:01:48.2]} 22. Qd2 {[%clk 0:02:28]}
22... Rac8 {[%clk 0:01:43.9]} 23. Rac1 {[%clk 0:02:26.9]} 23... Qc5 {[%clk
0:01:37.4]} 24. Rfe1 {[%clk 0:02:19.9]} 24... Ne4 {[%clk 0:01:32.5]} 25. Qe3
{[%clk 0:02:12.3]} 25... Qxe3 {[%clk 0:01:21.5]} 26. Rxe3 {[%clk 0:02:10.4]}
26... Nc3 {[%clk 0:01:22.1]} 27. Rce1 {[%clk 0:01:59.6]} 27... Rxe3 {[%clk
0:01:19.9]} 28. Rxe3 {[%clk 0:01:59.1]} 28... g5 {[%clk 0:00:57.2]} 29. Nd3
{[%clk 0:01:50.3]} 29... Bc6 {[%clk 0:00:34.2]} 30. Ne5 {[%clk 0:01:43.1]} 30...
Be8 {[%clk 0:00:34.2]} 31. Ng4 {[%clk 0:01:38.3]} 31... Kg7 {[%clk 0:00:32.1]}
32. Re5 {[%clk 0:01:30.9]} 32... f6 {[%clk 0:00:30.8]} 33. Re7+ {[%clk 0:01:29]}
33... Bf7 {[%clk 0:00:27.6]} 34. Ne3 {[%clk 0:01:27.7]} 34... Rd8 {[%clk
0:00:24.4]} 35. Nf5+ {[%clk 0:01:25.8]} 35... Kf8 {[%clk 0:00:23.9]} 36. Ra7
{[%clk 0:01:24.9]} 36... Bg6 {[%clk 0:00:18.5]} 37. Nd4 {[%clk 0:01:24.3]} 37...
Re8 {[%clk 0:00:16.5]} 38. Rxa5 {[%clk 0:01:20.3]} 38... Re1+ {[%clk 0:00:15.9]}
39. Kh2 {[%clk 0:01:19.7]} 39... Rc1 {[%clk 0:00:16.1]} 40. Bxd5 {[%clk
0:01:16.6]} 40... Bxc2 {[%clk 0:00:16.3]} 41. Nxc2 {[%clk 0:01:12.4]} 41... Rxc2
{[%clk 0:00:17.2]} 42. Kg2 {[%clk 0:01:12.6]} 42... Rb2 {[%clk 0:00:14.5]} 43.
Bc4 {[%clk 0:01:11.4]} 43... Nd1 {[%clk 0:00:14.1]} 44. Kf3 {[%clk 0:01:10.4]}
44... Nxf2 {[%clk 0:00:13.5]} 45. h4 {[%clk 0:01:09.6]} 45... h6 {[%clk
0:00:13.1]} 46. Ra7 {[%clk 0:01:08.5]} 46... Nd1 {[%clk 0:00:11.1]} 47. Rf7+
{[%clk 0:01:07.1]} 47... Ke8 {[%clk 0:00:11.5]} 48. Rxf6 {[%clk 0:01:07.8]}
48... gxh4 {[%clk 0:00:12.1]} 49. gxh4 {[%clk 0:01:07.6]} 49... Rf2+ {[%clk
0:00:12.1]} 0-1

[Event "Late-Titled-Tuesday-Blitz-April-02-2024"]
[Site "Chess.com"]
[Date "2024.04.02"]
[Round "7"]
[White "grandcoach"]
[Black "CatLoverPL"]
[Result "1-0"]
[WhiteElo "2281"]
[BlackElo "2492"]
[TimeControl "180+1"]
[EndTime "15:15:27 PDT"]
[Termination "grandcoach won by resignation"]

1. e4 {[%clk 0:03:00.9]} 1... g6 {[%clk 0:02:59.9]} 2. d4 {[%clk 0:02:58.5]}
2... Bg7 {[%clk 0:03:00.2]} 3. Nc3 {[%clk 0:02:58.6]} 3... c5 {[%clk 0:03:00.2]}
4. dxc5 {[%clk 0:02:58.5]} 4... Qa5 {[%clk 0:02:59.6]} 5. Bd2 {[%clk 0:02:58.9]}
5... Qxc5 {[%clk 0:02:59.6]} 6. Nd5 {[%clk 0:02:59]} 6... Na6 {[%clk 0:02:59.9]}
7. Nf3 {[%clk 0:02:52.2]} 7... e6 {[%clk 0:02:56.5]} 8. b4 {[%clk 0:02:39.2]}
8... Qf8 {[%clk 0:02:55.6]} 9. Bxa6 {[%clk 0:02:14.1]} 9... exd5 {[%clk
0:02:55.6]} 10. Bd3 {[%clk 0:02:14.5]} 10... Nf6 {[%clk 0:02:42]} 11. exd5
{[%clk 0:01:46.7]} 11... Nxd5 {[%clk 0:02:38.3]} 12. O-O {[%clk 0:01:47]} 12...
d6 {[%clk 0:02:35.9]} 13. Re1+ {[%clk 0:01:46.5]} 13... Be6 {[%clk 0:02:35.5]}
14. Bb5+ {[%clk 0:01:41.5]} 14... Kd8 {[%clk 0:02:33.7]} 15. Bg5+ {[%clk
0:01:34.6]} 15... Kc8 {[%clk 0:02:12.4]} 16. Nd4 {[%clk 0:01:16]} 16... Nc7
{[%clk 0:02:12.4]} 17. c4 {[%clk 0:01:07.6]} 17... h6 {[%clk 0:01:49.7]} 18. Bf4
{[%clk 0:01:02.8]} 18... g5 {[%clk 0:01:49.5]} 19. Nxe6 {[%clk 0:00:50.9]} 19...
fxe6 {[%clk 0:01:44.2]} 20. Bxd6 {[%clk 0:00:51.3]} 20... Qf7 {[%clk 0:01:39]}
21. Rc1 {[%clk 0:00:45.7]} 21... Rd8 {[%clk 0:01:24.3]} 22. Ba4 {[%clk
0:00:36.9]} 22... a5 {[%clk 0:01:16.4]} 23. b5 {[%clk 0:00:31.6]} 23... Bf8
{[%clk 0:01:11]} 24. c5 {[%clk 0:00:30.3]} 24... Nd5 {[%clk 0:01:11.5]} 25. Bb3
{[%clk 0:00:24.4]} 25... a4 {[%clk 0:01:01]} 26. Bc4 {[%clk 0:00:16.2]} 26...
Kd7 {[%clk 0:00:48.1]} 27. Rxe6 {[%clk 0:00:14.4]} 27... Qxe6 {[%clk 0:00:46.4]}
28. Bxd5 {[%clk 0:00:15.3]} 28... Qf6 {[%clk 0:00:23.7]} 29. Qg4+ {[%clk
0:00:13.9]} 29... Ke8 {[%clk 0:00:20.3]} 30. Qh5+ {[%clk 0:00:14]} 30... Kd7
{[%clk 0:00:20.3]} 31. Qg4+ {[%clk 0:00:13.9]} 31... Ke8 {[%clk 0:00:20.7]} 32.
Re1+ {[%clk 0:00:13.9]} 1-0

[Event "Late-Titled-Tuesday-Blitz-April-02-2024"]
[Site "Chess.com"]
[Date "2024.04.02"]
[Round "7"]
[White "MaestroCheck"]
[Black "GMKrikor"]
[Result "1/2-1/2"]
[WhiteElo "2587"]
[BlackElo "2873"]
[TimeControl "180+1"]
[EndTime "15:15:35 PDT"]
[Termination "Game drawn by repetition"]

1. e4 {[%clk 0:03:00.9]} 1... c5 {[%clk 0:02:59.5]} 2. Nc3 {[%clk 0:02:58.7]}
2... Nc6 {[%clk 0:02:59.4]} 3. Bb5 {[%clk 0:02:59.1]} 3... Nd4 {[%clk
0:02:58.4]} 4. Nf3 {[%clk 0:02:59.7]} 4... e6 {[%clk 0:02:58.6]} 5. O-O {[%clk
0:02:59.4]} 5... a6 {[%clk 0:02:58.1]} 6. Bd3 {[%clk 0:03:00]} 6... Nc6 {[%clk
0:02:57.8]} 7. Be2 {[%clk 0:02:57.8]} 7... Nf6 {[%clk 0:02:57.5]} 8. d4 {[%clk
0:02:56]} 8... cxd4 {[%clk 0:02:58.4]} 9. Nxd4 {[%clk 0:02:56.5]} 9... d6 {[%clk
0:02:58.9]} 10. Be3 {[%clk 0:02:55.9]} 10... Be7 {[%clk 0:02:57.6]} 11. f4
{[%clk 0:02:46.8]} 11... Bd7 {[%clk 0:02:55.2]} 12. Kh1 {[%clk 0:02:41.3]} 12...
O-O {[%clk 0:02:53.6]} 13. Qe1 {[%clk 0:02:41.2]} 13... b5 {[%clk 0:02:48]} 14.
a3 {[%clk 0:02:41]} 14... Nxd4 {[%clk 0:02:45.5]} 15. Bxd4 {[%clk 0:02:39.6]}
15... Bc6 {[%clk 0:02:46.3]} 16. Qg3 {[%clk 0:02:39.3]} 16... g6 {[%clk
0:02:40.4]} 17. Bd3 {[%clk 0:02:30.8]} 17... a5 {[%clk 0:02:03.9]} 18. Rae1
{[%clk 0:02:08.3]} 18... b4 {[%clk 0:01:59.5]} 19. Nb1 {[%clk 0:02:07.7]} 19...
Nh5 {[%clk 0:01:23.5]} 20. Qg4 {[%clk 0:01:44.4]} 20... Nxf4 {[%clk 0:01:10.6]}
21. Qxf4 {[%clk 0:01:44.4]} 21... e5 {[%clk 0:01:11.1]} 22. Bxe5 {[%clk
0:01:45.1]} 22... dxe5 {[%clk 0:01:10.9]} 23. Qxe5 {[%clk 0:01:46]} 23... Bd6
{[%clk 0:00:55.1]} 24. Qd4 {[%clk 0:01:26.5]} 24... Qe7 {[%clk 0:00:50.8]} 25.
axb4 {[%clk 0:01:24.1]} 25... axb4 {[%clk 0:00:41.7]} 26. Nd2 {[%clk 0:01:21.3]}
26... Be5 {[%clk 0:00:41.4]} 27. Qb6 {[%clk 0:01:10.3]} 27... Rac8 {[%clk
0:00:19.1]} 28. Nc4 {[%clk 0:01:06.7]} 28... Bb8 {[%clk 0:00:18.9]} 29. Qf2
{[%clk 0:00:47.2]} 29... Bb5 {[%clk 0:00:17.1]} 30. b3 {[%clk 0:00:44.7]} 30...
Bxc4 {[%clk 0:00:15.9]} 31. Bxc4 {[%clk 0:00:45.1]} 31... Be5 {[%clk 0:00:16]}
32. Rd1 {[%clk 0:00:38.6]} 32... Kg7 {[%clk 0:00:15.8]} 33. Rd3 {[%clk
0:00:37.1]} 33... Rc7 {[%clk 0:00:14]} 34. Rf3 {[%clk 0:00:36.9]} 34... h5
{[%clk 0:00:10.9]} 35. h3 {[%clk 0:00:33.6]} 35... Qe8 {[%clk 0:00:06.3]} 36.
Rd3 {[%clk 0:00:32.1]} 36... Qe7 {[%clk 0:00:05.8]} 37. Rf3 {[%clk 0:00:31.9]}
37... Qd7 {[%clk 0:00:05.2]} 38. Rd3 {[%clk 0:00:31.2]} 38... Qe7 {[%clk
0:00:05.8]} 39. Rf3 {[%clk 0:00:31.6]} 1/2-1/2

[Event "Late-Titled-Tuesday-Blitz-April-02-2024"]
[Site "Chess.com"]
[Date "2024.04.02"]
[Round "7"]
[White "katharinareinecke"]
[Black "cedchass2006"]
[Result "0-1"]
[WhiteElo "2022"]
[BlackElo "2425"]
[TimeControl "180+1"]
[EndTime "15:15:41 PDT"]
[Termination "cedchass2006 won by resignation"]

1. d4 {[%clk 0:03:00.9]} 1... Nf6 {[%clk 0:02:54.7]} 2. c4 {[%clk 0:02:58.7]}
2... e6 {[%clk 0:02:50.4]} 3. Nf3 {[%clk 0:02:58]} 3... d5 {[%clk 0:02:48]} 4.
g3 {[%clk 0:02:57.1]} 4... dxc4 {[%clk 0:02:44.2]} 5. Bg2 {[%clk 0:02:52]} 5...
a6 {[%clk 0:02:42.5]} 6. a4 {[%clk 0:02:44.1]} 6... c5 {[%clk 0:02:34.9]} 7. O-O
{[%clk 0:02:39.5]} 7... Nc6 {[%clk 0:02:33.9]} 8. e3 {[%clk 0:02:31.8]} 8...
cxd4 {[%clk 0:02:33.1]} 9. Nxd4 {[%clk 0:02:29.2]} 9... Nxd4 {[%clk 0:02:32.7]}
10. exd4 {[%clk 0:02:29.5]} 10... Be7 {[%clk 0:02:31.6]} 11. Na3 {[%clk
0:02:27.2]} 11... Qc7 {[%clk 0:02:29.5]} 12. Qe2 {[%clk 0:02:14.8]} 12... c3
{[%clk 0:02:20.7]} 13. bxc3 {[%clk 0:02:01.5]} 13... Qxc3 {[%clk 0:02:19.8]} 14.
Bb2 {[%clk 0:02:00.1]} 14... Qb3 {[%clk 0:02:12.6]} 15. Nc4 {[%clk 0:01:54.5]}
15... O-O {[%clk 0:02:10.4]} 16. Rfb1 {[%clk 0:01:39.4]} 16... Nd5 {[%clk
0:01:15.9]} 17. Ba3 {[%clk 0:01:22.9]} 17... Qc3 {[%clk 0:00:55.1]} 18. Bxe7
{[%clk 0:01:18.4]} 18... Nxe7 {[%clk 0:00:53.2]} 19. Nb6 {[%clk 0:01:16.3]}
19... Rb8 {[%clk 0:00:50.6]} 20. Rc1 {[%clk 0:01:03]} 20... Qxd4 {[%clk
0:00:49.4]} 21. Rab1 {[%clk 0:00:57.7]} 21... Nd5 {[%clk 0:00:41.5]} 22. Nxc8
{[%clk 0:00:48]} 22... Rfxc8 {[%clk 0:00:37.8]} 23. Rxc8+ {[%clk 0:00:47.2]}
23... Rxc8 {[%clk 0:00:38.7]} 24. Bxd5 {[%clk 0:00:43.4]} 24... Qxd5 {[%clk
0:00:37]} 25. Qb2 {[%clk 0:00:40.3]} 25... g6 {[%clk 0:00:32.7]} 26. h4 {[%clk
0:00:29.3]} 26... h5 {[%clk 0:00:29.2]} 27. Qe2 {[%clk 0:00:16.9]} 27... b5
{[%clk 0:00:21.5]} 28. Rd1 {[%clk 0:00:15.6]} 28... Qc4 {[%clk 0:00:20.4]} 29.
Qe5 {[%clk 0:00:10.8]} 29... Qxa4 {[%clk 0:00:17.3]} 30. Re1 {[%clk 0:00:06.5]}
30... Qc4 {[%clk 0:00:15.1]} 31. Qf6 {[%clk 0:00:05.8]} 31... Qc3 {[%clk
0:00:15.1]} 32. Rd1 {[%clk 0:00:05.7]} 32... Qxf6 {[%clk 0:00:15]} 0-1

[Event "Late-Titled-Tuesday-Blitz-April-02-2024"]
[Site "Chess.com"]
[Date "2024.04.02"]
[Round "7"]
[White "Itay121"]
[Black "dedpihto_v_kozhanom_palto"]
[Result "0-1"]
[WhiteElo "2559"]
[BlackElo "2723"]
[TimeControl "180+1"]
[EndTime "15:15:43 PDT"]
[Termination "dedpihto_v_kozhanom_palto won by checkmate"]

1. e4 {[%clk 0:03:00.9]} 1... g6 {[%clk 0:03:00.3]} 2. d4 {[%clk 0:03:00.9]}
2... Bg7 {[%clk 0:03:01]} 3. h4 {[%clk 0:03:00]} 3... h5 {[%clk 0:03:00.4]} 4.
Bc4 {[%clk 0:02:58.6]} 4... d6 {[%clk 0:03:00.9]} 5. Nc3 {[%clk 0:02:57.6]} 5...
Nc6 {[%clk 0:03:01.4]} 6. Be3 {[%clk 0:02:56.6]} 6... e5 {[%clk 0:03:01]} 7.
Nge2 {[%clk 0:02:55]} 7... Nf6 {[%clk 0:02:58.6]} 8. Qd2 {[%clk 0:02:49.6]} 8...
O-O {[%clk 0:02:55.8]} 9. O-O-O {[%clk 0:02:49]} 9... Ng4 {[%clk 0:02:55.5]} 10.
Bg5 {[%clk 0:02:48.2]} 10... Qe8 {[%clk 0:02:54.7]} 11. Nd5 {[%clk 0:02:40.5]}
11... exd4 {[%clk 0:02:44.6]} 12. Rdf1 {[%clk 0:02:14.5]} 12... Nce5 {[%clk
0:02:40.9]} 13. Bb3 {[%clk 0:02:10.5]} 13... d3 {[%clk 0:02:30.7]} 14. cxd3
{[%clk 0:01:59.9]} 14... Be6 {[%clk 0:02:31.3]} 15. Nec3 {[%clk 0:01:50.9]}
15... Bxd5 {[%clk 0:02:22]} 16. Nxd5 {[%clk 0:01:49.8]} 16... Qb5 {[%clk
0:02:22.2]} 17. f3 {[%clk 0:01:42.1]} 17... Nxd3+ {[%clk 0:02:20.6]} 18. Kb1
{[%clk 0:01:42.3]} 18... Nge5 {[%clk 0:02:16.8]} 19. Nf6+ {[%clk 0:01:20.8]}
19... Kh8 {[%clk 0:02:10.1]} 20. g4 {[%clk 0:01:20.9]} 20... a5 {[%clk
0:02:03.9]} 21. gxh5 {[%clk 0:01:19.4]} 21... a4 {[%clk 0:02:04.3]} 22. h6
{[%clk 0:00:58.3]} 22... Bxf6 {[%clk 0:01:53.1]} 23. Bxf6+ {[%clk 0:00:55.5]}
23... Kh7 {[%clk 0:01:53.7]} 24. Bd5 {[%clk 0:00:47.5]} 24... c6 {[%clk
0:01:51.8]} 25. f4 {[%clk 0:00:47.4]} 25... cxd5 {[%clk 0:01:47.8]} 26. fxe5
{[%clk 0:00:47.3]} 26... dxe5 {[%clk 0:01:34.4]} 27. Bg7 {[%clk 0:00:40.2]}
27... dxe4 {[%clk 0:01:29.7]} 28. h5 {[%clk 0:00:36.2]} 28... g5 {[%clk
0:01:26.5]} 29. Rh2 {[%clk 0:00:26.5]} 29... Nf4 {[%clk 0:01:20.1]} 30. Rg1
{[%clk 0:00:23.1]} 30... Rfd8 {[%clk 0:01:17.7]} 31. Qc2 {[%clk 0:00:20.5]}
31... f5 {[%clk 0:01:06.9]} 32. Bf6 {[%clk 0:00:16.9]} 32... Rdc8 {[%clk
0:00:57.9]} 33. Qd2 {[%clk 0:00:10.1]} 33... g4 {[%clk 0:00:54.5]} 34. Bg5
{[%clk 0:00:06.5]} 34... Qd3+ {[%clk 0:00:48.4]} 35. Qxd3 {[%clk 0:00:06.8]}
35... Nxd3 {[%clk 0:00:49.3]} 36. Rd1 {[%clk 0:00:06.3]} 36... a3 {[%clk
0:00:47.3]} 37. bxa3 {[%clk 0:00:06.2]} 37... Ra5 {[%clk 0:00:44.1]} 38. Rb2
{[%clk 0:00:06.8]} 38... Rc7 {[%clk 0:00:41.5]} 39. Rb6 {[%clk 0:00:06.1]} 39...
Rac5 {[%clk 0:00:41]} 40. Rg6 {[%clk 0:00:01.7]} 40... f4 {[%clk 0:00:38]} 41.
Rf6 {[%clk 0:00:02.1]} 41... Rc1+ {[%clk 0:00:36.8]} 42. Rxc1 {[%clk 0:00:02.7]}
42... Rxc1# {[%clk 0:00:37.5]} 0-1

[Event "Late-Titled-Tuesday-Blitz-April-02-2024"]
[Site "Chess.com"]
[Date "2024.04.02"]
[Round "7"]
[White "Hikaru"]
[Black "SpeedofLight0"]
[Result "0-1"]
[WhiteElo "3261"]
[BlackElo "3082"]
[TimeControl "180+1"]
[EndTime "15:15:47 PDT"]
[Termination "SpeedofLight0 won by resignation"]

1. d4 {[%clk 0:03:00.9]} 1... d6 {[%clk 0:02:59.5]} 2. e4 {[%clk 0:03:00.3]}
2... g6 {[%clk 0:02:59.3]} 3. Nf3 {[%clk 0:02:59.7]} 3... Bg7 {[%clk 0:02:59.6]}
4. Bc4 {[%clk 0:03:00.5]} 4... a6 {[%clk 0:02:58.8]} 5. Qe2 {[%clk 0:02:59.4]}
5... b5 {[%clk 0:02:58.5]} 6. Bb3 {[%clk 0:03:00.1]} 6... Bb7 {[%clk 0:02:58.7]}
7. O-O {[%clk 0:02:53.6]} 7... Nd7 {[%clk 0:02:57.9]} 8. Bxf7+ {[%clk
0:02:29.4]} 8... Kxf7 {[%clk 0:02:49.9]} 9. Ng5+ {[%clk 0:02:30.3]} 9... Ke8
{[%clk 0:02:50.2]} 10. Ne6 {[%clk 0:02:30.5]} 10... Qc8 {[%clk 0:02:50.7]} 11.
Nxg7+ {[%clk 0:02:31.2]} 11... Kf7 {[%clk 0:02:50.9]} 12. Nh5 {[%clk 0:02:31.9]}
12... gxh5 {[%clk 0:02:40.4]} 13. Qxh5+ {[%clk 0:02:32.8]} 13... Kg7 {[%clk
0:02:14.8]} 14. Re1 {[%clk 0:02:21.9]} 14... Qe8 {[%clk 0:02:03.8]} 15. Qg4+
{[%clk 0:02:14.4]} 15... Kf8 {[%clk 0:02:03.8]} 16. Qf5+ {[%clk 0:02:04.2]}
16... Kg7 {[%clk 0:01:49.6]} 17. Re3 {[%clk 0:01:57]} 17... Nf8 {[%clk 0:01:26]}
18. h4 {[%clk 0:01:49.9]} 18... h5 {[%clk 0:01:24.1]} 19. Rg3+ {[%clk
0:01:43.9]} 19... Ng6 {[%clk 0:01:24.2]} 20. Nc3 {[%clk 0:01:39.4]} 20... Qf7
{[%clk 0:01:23.1]} 21. Be3 {[%clk 0:01:34]} 21... Rf8 {[%clk 0:01:15.7]} 22. Qg5
{[%clk 0:01:29.4]} 22... Nf6 {[%clk 0:01:14.1]} 23. f3 {[%clk 0:01:26.1]} 23...
Rfg8 {[%clk 0:01:06.4]} 24. e5 {[%clk 0:01:10.5]} 24... Kf8 {[%clk 0:00:51.3]}
25. exf6 {[%clk 0:01:05.4]} 25... exf6 {[%clk 0:00:52.2]} 26. Qf5 {[%clk
0:01:01.6]} 26... Nxh4 {[%clk 0:00:52.3]} 27. Qh3 {[%clk 0:00:41.9]} 27... Rxg3
{[%clk 0:00:51.9]} 28. Qxg3 {[%clk 0:00:42]} 28... Nxg2 {[%clk 0:00:52.3]} 29.
Kf2 {[%clk 0:00:41.2]} 29... Rg8 {[%clk 0:00:43.2]} 30. Bh6+ {[%clk 0:00:39.5]}
30... Ke8 {[%clk 0:00:43.2]} 31. Qh3 {[%clk 0:00:37]} 31... Qg6 {[%clk
0:00:41.7]} 32. Bd2 {[%clk 0:00:24.9]} 32... Ke7 {[%clk 0:00:20.9]} 33. Rg1
{[%clk 0:00:15.8]} 33... Qxc2 {[%clk 0:00:20.4]} 34. Nb1 {[%clk 0:00:16.3]}
34... Nf4 {[%clk 0:00:10.9]} 35. Qh2 {[%clk 0:00:16.3]} 35... Rxg1 {[%clk
0:00:07.2]} 36. Kxg1 {[%clk 0:00:16.8]} 36... Qxb1+ {[%clk 0:00:06.3]} 37. Kf2
{[%clk 0:00:17.7]} 37... Nd3+ {[%clk 0:00:05.1]} 38. Ke3 {[%clk 0:00:18]} 38...
Nxb2 {[%clk 0:00:04.6]} 39. Qxh5 {[%clk 0:00:18.9]} 39... Qd3+ {[%clk
0:00:04.5]} 40. Kf4 {[%clk 0:00:19.8]} 40... Qxd2+ {[%clk 0:00:05]} 41. Kg3
{[%clk 0:00:20.2]} 41... Qg5+ {[%clk 0:00:05.3]} 0-1